bitfinex-derivatives/quotes_ETHF0:USTF0_20250114
["timestamp","ask_amount","ask_price","bid_price","bid_amount"]
[1736878448539,5.02357841,3214.3,3214.2,41.11129]
[1736878449242,5.02357841,3214.3,3214.2,40.8]
[1736878449442,5.02357841,3214.3,3214.2,41.11129]
[1736878450037,5.02357841,3214.3,3214.2,40.8]
[1736878450344,5.02357841,3214.3,3214.2,41.11129]
[1736878450840,4.71228841,3214.3,3214.2,41.11129]
[1736878451147,5.02356841,3214.3,3214.2,43.56671674]
[1736878451439,3.41728841,3214.3,3214.2,46.77451674]
[1736878451645,2.05674,3214.7,3214.6,0.31125]
[1736878452046,5.3172376,3214.7,3214.6,0.31125]
[1736878452446,4.0222376,3214.7,3214.6,0.31125]
[1736878453243,0.31125,3214.6,3214.5,0.31125]
[1736878453443,3.7109976,3214.7,3214.2,46.46322674]
[1736878453750,3.92007623,3214.6,3214.5,0.31126]
[1736878456845,0.31127,3214.5,3214.4,0.31126]
[1736878457347,3.87469282,3214.5,3214.4,0.31126]
[1736878457950,3.56342282,3214.5,3214.4,0.31126]
[1736878458350,3.26681294,3214.6,3214.2,46.46322674]
[1736878458552,1.295,3214.8,3214.5,2.45542674]
[1736878458748,1.60623,3214.8,3214.7,0.31124]
[1736878459052,5.1971331,3214.8,3214.7,0.31124]
[1736878459246,0.31125,3214.7,3214.6,0.31124]
[1736878459447,0.31125,3214.7,3214.3,0.31127]
[1736878459448,0.31128,3214.4,3214.3,0.31127]
[1736878459841,0.31128,3214.4,3214.2,46.46322674]
[1736878459842,3.5909031,3214.4,3214.2,46.46322674]
[1736878460046,3.9021731,3214.4,3214.3,0.31128]
[1736878460251,0.31127,3214.4,3214.3,0.31128]
[1736878460451,3.7905083,3214.4,3214.3,0.31128]
[1736878461249,0.31128,3214.3,3214.2,44.0078]
[1736878461451,1.72668,3214.3,3214.2,44.31909]
[1736878461652,5.02816372,3214.3,3214.2,44.31909]
[1736878462251,3.78298372,3214.3,3214.2,44.31909]
[1736878462449,3.30148372,3214.3,3214.2,44.31909]
[1736878462646,3.30148372,3214.3,3214.2,44.80349]
[1736878463254,0.9396,3214.7,3214.2,44.80349]
[1736878463456,1.25084,3214.7,3214.6,0.31125]
[1736878463745,4.52484955,3214.7,3214.6,3.51905]
[1736878463952,3.58524955,3214.7,3214.6,3.51905]
[1736878464153,1.295,3215.5,3214.6,3.2078]
[1736878464347,1.3914,3215.6,3215.1,5.66322674]
[1736878464547,1.70255,3215.6,3215.5,0.31116]
[1736878464751,3.88754882,3215.5,3215.4,0.31116]
[1736878465049,4.96776882,3215.6,3215.1,5.66322674]
[1736878465355,3.8102656,3215.5,3215.4,41.11117]
[1736878465550,3.8102656,3215.5,3215.4,40.8]
[1736878466950,3.8102656,3215.5,3215.4,41.11117]
[1736878468554,3.8102656,3215.5,3215.4,40.8]
[1736878469061,3.8102656,3215.5,3215.4,41.11117]
[1736878469260,3.8102656,3215.5,3215.4,40.8]
[1736878470148,3.8102656,3215.5,3215.4,41.11117]
[1736878470758,3.8102656,3215.5,3215.4,40.8]
[1736878473754,0.31125,3214.6,3214.5,0.78016]
[1736878473953,1.294,3214.9,3214.4,2.45542674]
[1736878474152,1.294,3214.9,3214.2,3.2078]
[1736878474153,0.31128,3214.3,3214.2,3.51908]
[1736878474361,0.946,3214.5,3213.7,6.12642674]
[1736878474362,4.1538,3214.5,3213.7,6.12642674]
[1736878474557,4.1538,3214.5,3213.9,0.31131]
[1736878474558,0.31131,3214.0,3213.9,0.31131]
[1736878474758,0.31132,3213.9,3213.8,0.31132]
[1736878475160,0.31132,3213.9,3213.8,41.11132]
[1736878475566,0.4854,3214.2,3213.8,40.8]
[1736878475864,3.47756767,3214.1,3214.0,2.76672674]
[1736878476263,4.00676,3214.5,3214.4,0.31127]
[1736878476565,7.5982674,3214.5,3214.4,0.31127]
[1736878477066,7.5982674,3214.5,3214.4,41.11127]
[1736878477464,7.5982674,3214.5,3214.4,40.8]
[1736878486279,0.31129,3214.2,3214.1,0.31129]
[1736878486671,3.47232091,3214.2,3214.1,0.31129]
[1736878486871,3.78361091,3214.2,3214.1,0.31129]
[1736878487066,0.31129,3214.2,3214.1,0.31129]
[1736878487270,3.6391398,3214.2,3214.1,0.31129]
[1736878488177,3.6391398,3214.2,3214.1,41.11129]
[1736878490576,3.6391398,3214.2,3214.1,40.8]
[1736878491380,4.1347398,3214.2,3214.1,40.8]
[1736878492584,4.1347398,3214.2,3214.1,41.1113]
[1736878493076,4.1347398,3214.2,3214.1,40.8]
[1736878493283,4.1347398,3214.2,3214.1,41.1113]
[1736878493681,3.8234498,3214.2,3214.1,41.1113]
[1736878493883,4.1347398,3214.2,3214.1,41.1113]
[1736878495183,4.1347398,3214.2,3214.1,40.8]
[1736878495781,4.1347398,3214.2,3214.1,41.1113]
[1736878496282,3.8234498,3214.2,3214.1,41.1113]
[1736878498177,3.3278498,3214.2,3214.1,41.1113]
[1736878498583,3.45652871,3214.3,3214.2,0.31129]
[1736878499085,1.295,3214.4,3214.3,0.31128]
[1736878499587,4.8658742,3214.4,3214.3,0.31128]
[1736878500177,5.1771442,3214.4,3214.3,0.31128]
[1736878500378,0.31129,3214.2,3214.1,40.8]
[1736878500786,3.78758367,3214.2,3214.1,40.8]
[1736878501191,0.3113,3214.0,3213.9,0.31131]
[1736878501578,3.83087472,3214.0,3213.9,40.8]
[1736878501987,3.83087472,3214.0,3212.1,4.80516821]
[1736878501988,8.90723586,3214.0,3212.3,3.2078]
[1736878502289,0.31145,3212.5,3212.4,0.31146]
[1736878502489,3.98638,3212.7,3212.1,2.45542674]
[1736878502683,3.78610205,3212.5,3212.4,0.31146]
[1736878502885,3.14504889,3212.6,3212.4,40.8]
[1736878503086,3.2078,3212.7,3212.4,41.11145]
[1736878503286,3.78610205,3212.5,3212.4,40.8]
[1736878503485,0.31145,3212.5,3212.4,40.8]
[1736878503688,3.68746185,3212.5,3212.4,40.8]
[1736878503885,3.68746185,3212.5,3212.4,41.11146]
[1736878504893,3.68746185,3212.5,3212.4,40.8]
[1736878505096,6.14288859,3212.5,3212.4,40.8]
[1736878506190,6.14288859,3212.5,3212.1,0.31149]
[1736878506191,5.83143859,3212.5,3212.0,0.4609]
[1736878506494,0.31148,3212.3,3212.1,0.31149]
[1736878506696,0.31148,3212.3,3212.2,40.8]
[1736878507195,3.79037963,3212.3,3212.2,40.8]
[1736878507694,3.79037963,3212.3,3212.2,41.11148]
[1736878508493,3.47889963,3212.3,3212.2,41.11148]
[1736878508891,1.294,3212.4,3212.2,40.8]
[1736878509096,1.294,3212.4,3212.3,0.31147]
[1736878509501,3.58851438,3212.3,3212.2,41.11148]
[1736878509695,4.88251438,3212.4,3212.2,40.8]
[1736878509889,1.294,3212.4,3212.3,0.31147]
[1736878510293,4.88251438,3212.4,3212.3,0.31147]
[1736878511094,5.19397438,3212.4,3212.2,41.11147]
[1736878511295,0.31147,3212.3,3212.2,40.8]
[1736878511903,3.7069472,3212.3,3212.2,40.8]
[1736878512693,3.7069472,3212.3,3212.2,41.11148]
[1736878512897,3.7069472,3212.3,3212.2,40.8]
[1736878513705,3.7069472,3212.3,3212.2,41.11148]
[1736878513911,3.7069472,3212.3,3212.2,40.8]
[1736878516903,3.3954772,3212.3,3212.2,41.11148]
[1736878517301,0.31147,3212.3,3212.2,41.11148]
[1736878517703,3.38023192,3212.3,3212.2,41.11148]
[1736878517912,1.28661,3212.9,3212.8,0.31142]
[1736878518112,1.295,3213.2,3213.1,0.31139]
[1736878518407,3.56438809,3213.1,3213.0,3.2078]
[1736878518611,3.56438809,3213.1,3213.0,3.5192]
[1736878518804,3.56438809,3213.1,3213.0,40.8]
[1736878519306,3.25299809,3213.1,3213.0,44.3192]
[1736878519606,0.31136,3213.4,3213.0,44.0078]
[1736878519799,3.42147284,3213.4,3213.3,0.31137]
[1736878520005,0.31138,3213.3,3213.2,0.31138]
[1736878520201,0.31136,3213.4,3213.2,0.31138]
[1736878520399,3.29581445,3213.3,3213.1,0.4953]
[1736878520606,0.31138,3213.2,3213.1,0.80669]
[1736878520999,3.29581445,3213.2,3213.1,0.80669]
[1736878521511,0.31138,3213.2,3213.1,0.80669]
[1736878521710,3.48518429,3213.2,3213.1,0.80669]
[1736878522011,0.31138,3213.3,3213.2,0.31138]
[1736878522308,3.48518429,3213.2,3213.1,0.80669]
[1736878522610,0.31137,3213.3,3213.2,0.31138]
[1736878523003,3.60643876,3213.3,3213.2,0.31138]
[1736878523198,3.29506876,3213.3,3213.2,0.31138]
[1736878523403,3.60643876,3213.3,3213.2,0.31138]
[1736878523613,0.31136,3213.5,3213.4,0.31136]
[1736878523810,3.23716984,3213.5,3213.0,44.0078]
[1736878524114,0.31138,3213.3,3213.2,0.31138]
[1736878524411,3.54985124,3213.3,3213.0,44.0078]
[1736878524607,3.54985124,3213.3,3213.2,0.31138]
[1736878524809,3.54985124,3213.4,3213.3,0.31137]
[1736878525109,3.54985124,3213.5,3213.4,0.31136]
[1736878525309,0.4835,3213.7,3213.2,0.77845]
[1736878525513,0.31135,3213.6,3213.5,0.31135]
[1736878525811,0.31135,3213.6,3213.1,0.77849]
[1736878525812,3.50025718,3213.6,3213.1,0.77849]
[1736878526006,3.50025718,3213.6,3213.5,44.31915]
[1736878526509,0.31128,3214.3,3214.2,0.31129]
[1736878526698,0.31129,3214.2,3214.1,0.31129]
[1736878527103,3.60940712,3214.2,3214.1,0.31129]
[1736878527299,3.29811712,3214.2,3214.1,0.31129]
[1736878527704,3.86840776,3214.3,3214.2,0.31129]
[1736878527911,0.31128,3214.3,3214.2,0.31129]
[1736878528312,3.86840776,3214.3,3214.2,0.31129]
[1736878529014,3.86840776,3214.3,3213.9,3.2078]
[1736878529310,3.55712776,3214.3,3214.2,0.31129]
[1736878529504,3.55712776,3214.3,3213.9,3.2078]
[1736878529702,0.3113,3214.1,3213.9,3.51911]
[1736878529904,0.3113,3214.0,3213.9,3.2078]
[1736878530111,0.3113,3214.0,3213.5,3.2078]
[1736878530112,0.31134,3213.6,3213.5,3.2078]
[1736878530313,0.31137,3213.4,3213.3,0.31137]
[1736878530716,3.67818142,3213.4,3213.3,0.31137]
[1736878531508,0.31138,3213.3,3213.2,0.31138]
[1736878531814,0.31138,3213.3,3213.1,0.31138]
[1736878531815,0.31139,3213.2,3213.1,0.31138]
[1736878532312,3.75988545,3213.2,3213.1,41.11138]
[1736878532514,3.75988545,3213.2,3213.1,40.8]
[1736878532715,4.25688545,3213.2,3213.1,40.8]
[1736878535006,0.31143,3212.7,3212.6,0.31144]
[1736878535210,0.31143,3212.7,3212.5,3.2078]
[1736878535407,0.31144,3212.6,3212.5,3.51925]
[1736878535711,4.81314161,3212.6,3212.5,3.51925]
[1736878535919,4.81314161,3212.6,3212.5,44.0078]
[1736878536112,4.81314161,3212.6,3212.5,44.31925]
[1736878536314,4.50170161,3212.6,3212.5,44.31925]
[1736878536616,4.81314161,3212.6,3212.5,44.31925]
[1736878536809,4.81314161,3212.6,3212.5,44.0078]
[1736878537320,4.81062416,3212.6,3212.5,44.0078]
[1736878537815,4.81062416,3212.6,3212.5,44.31925]
[1736878538214,4.81062416,3212.6,3212.5,44.0078]
[1736878538615,4.49918416,3212.6,3212.5,44.31925]
[1736878539714,3.57720161,3212.6,3212.5,44.31925]
[1736878540217,0.31144,3212.7,3212.6,0.31144]
[1736878540710,0.31144,3212.6,3212.5,44.31924]
[1736878541112,3.61382979,3212.6,3212.5,44.31924]
[1736878541312,3.30238979,3212.6,3212.5,44.31924]
[1736878542115,0.77831,3213.9,3213.5,0.31135]
[1736878542116,1.294,3213.9,3213.5,0.31135]
[1736878542314,0.77653,3213.8,3213.7,0.31132]
[1736878542510,4.1555783,3213.8,3213.7,0.31132]
[1736878542715,3.8442483,3213.8,3213.7,41.11132]
[1736878542917,4.1555683,3213.8,3213.7,41.11132]
[1736878543117,3.3790483,3213.8,3213.7,41.11132]
[1736878545122,1.294,3214.5,3213.7,40.8]
[1736878545325,1.60526,3214.5,3214.4,0.31126]
[1736878545624,4.70255563,3214.5,3214.4,0.31126]
[1736878546013,3.09729563,3214.5,3214.1,3.2078]
[1736878546214,0.31128,3214.3,3214.2,0.31128]
[1736878546523,3.83358798,3214.3,3214.2,0.31128]
[1736878546720,3.52230798,3214.3,3214.2,0.31128]
[1736878547123,3.52230798,3214.5,3214.1,3.2078]
[1736878547317,3.83357798,3214.4,3214.3,0.31128]
[1736878547517,2.2549,3214.6,3214.1,3.2078]
[1736878547719,0.31127,3214.4,3214.3,0.31127]
[1736878547920,3.43655776,3214.4,3214.3,0.31127]
[1736878548225,2.2549,3214.6,3214.1,3.2078]
[1736878548624,0.31127,3214.4,3214.3,0.31127]
[1736878548821,3.26247558,3214.5,3214.1,3.2078]
[1736878549130,0.31126,3214.5,3214.4,0.31127]
[1736878549422,3.57373558,3214.5,3214.4,0.31127]
[1736878549624,3.26247558,3214.5,3214.2,0.31129]
[1736878549817,3.26247558,3214.5,3214.1,3.2078]
[1736878549818,0.31127,3214.4,3214.3,0.31128]
[1736878550021,4.55547558,3214.5,3214.1,3.2078]
[1736878550216,1.293,3214.5,3214.4,0.31127]
[1736878550718,4.61932374,3214.5,3214.4,0.31127]
[1736878551027,4.93058374,3214.5,3214.4,0.31127]
[1736878551925,0.31127,3214.4,3214.3,0.31127]
[1736878552125,4.93058374,3214.5,3214.4,0.31127]
[1736878552322,1.60426,3214.5,3214.4,0.31127]
[1736878552523,5.11301755,3214.5,3214.3,0.31127]
[1736878552723,4.80175755,3214.5,3214.3,0.31127]
[1736878553026,0.31127,3214.4,3214.3,0.31127]
[1736878553226,5.11301755,3214.5,3214.4,0.31127]
[1736878553425,3.82002755,3214.4,3214.3,0.31127]
[1736878553625,5.11246529,3214.5,3214.1,3.2078]
[1736878553825,5.11246529,3214.5,3214.4,0.31127]
[1736878554025,1.60427,3214.5,3214.2,0.31129]
[1736878554222,0.31127,3214.4,3214.3,0.31127]
[1736878554622,3.79646459,3214.4,3214.3,0.31127]
[1736878554824,3.48519459,3214.4,3214.3,0.31127]
[1736878558738,4.5008,3215.7,3214.3,5.0]
[1736878558945,4.5008,3215.7,3214.2,2.45542674]
[1736878558946,0.4908,3215.5,3215.1,3.98578]
[1736878559129,3.75159917,3215.5,3215.4,0.31117]
[1736878559330,0.80196,3215.5,3215.4,41.11117]
[1736878559631,4.14989313,3215.5,3215.4,41.11117]
[1736878560233,3.83873313,3215.5,3215.4,41.11117]
[1736878560636,3.34793313,3215.5,3215.4,41.11117]
[1736878560831,0.76151,3216.1,3216.0,0.31111]
[1736878561040,0.31112,3216.0,3215.9,0.31112]
[1736878561231,3.38150956,3216.0,3215.7,3.2078]
[1736878561431,3.2078,3215.8,3215.4,40.8]
[1736878561734,2.76658674,3215.5,3215.4,40.8]
[1736878562125,2.76658674,3215.5,3214.9,3.2078]
[1736878562126,0.31121,3215.0,3214.9,3.2078]
[1736878562333,0.31125,3214.6,3214.5,3.2078]
[1736878562638,3.33086091,3214.6,3214.4,0.31126]
[1736878562823,3.33086091,3214.6,3214.5,0.31126]
[1736878563029,1.389,3214.9,3214.8,0.31123]
[1736878563030,4.26566091,3214.9,3214.8,0.31123]
[1736878563232,1.6032,3215.2,3214.8,5.66322674]
[1736878563529,3.87179131,3214.9,3214.8,3.51902]
[1736878563836,0.31122,3214.9,3214.8,3.51902]
[1736878564236,3.87179131,3214.9,3214.8,3.51902]
[1736878566534,3.87179131,3214.9,3214.8,3.2078]
[1736878566738,3.87179131,3214.9,3214.0,44.0078]
[1736878566739,3.56057131,3214.9,3214.0,44.0078]
[1736878567035,0.7781,3214.7,3214.0,44.0078]
[1736878567334,0.7781,3214.7,3214.2,0.31128]
[1736878567335,0.31129,3214.3,3214.2,0.31128]
[1736878567726,3.03004178,3214.3,3214.2,0.31128]
[1736878567929,2.71875178,3214.3,3214.2,0.31128]
[1736878568129,2.71875178,3214.3,3214.2,2.76670674]
[1736878568334,3.57909466,3214.5,3214.4,0.31127]
[1736878568533,0.31129,3214.2,3214.1,0.3113]
[1736878568845,3.71806929,3214.2,3214.1,0.3113]
[1736878569143,3.40677929,3214.2,3214.1,0.3113]
[1736878569532,0.4717,3214.6,3214.5,0.31126]
[1736878569839,3.2078,3215.0,3214.9,0.31122]
[1736878570236,6.59933568,3215.0,3214.9,41.11122]
[1736878573741,3.39153568,3215.0,3214.9,46.77444674]
[1736878573952,0.4633,3215.3,3215.2,0.31119]
[1736878574244,3.86480971,3215.3,3215.2,0.31119]
[1736878574440,3.86480971,3215.3,3214.9,44.0078]
[1736878574643,0.3112,3215.2,3215.1,0.31119]
[1736878574840,4.17599971,3215.3,3215.2,0.31119]
[1736878575146,0.77449,3215.3,3215.2,0.31119]
[1736878575445,3.8720702,3215.3,3215.2,0.31119]
[1736878575641,3.4087702,3215.3,3215.2,0.31119]
[1736878575942,0.4957,3215.5,3214.9,47.24126674]
[1736878576151,0.4957,3215.5,3215.2,0.31118]
[1736878576152,0.31119,3215.3,3215.2,0.31118]
[1736878576342,0.4957,3215.5,3214.9,44.0078]
[1736878576547,3.3589447,3215.3,3215.2,0.31119]
[1736878576745,3.3589447,3215.4,3215.3,0.31118]
[1736878576938,0.31119,3215.3,3215.2,0.31118]
[1736878577346,3.6701347,3215.3,3215.2,0.31118]
[1736878577540,0.31121,3215.0,3214.9,44.0078]
[1736878577746,1.60321,3215.0,3214.9,44.0078]
[1736878578054,5.20192479,3215.0,3214.9,44.0078]
[1736878578248,5.20192479,3215.0,3214.9,40.8]
[1736878578543,4.89071479,3215.0,3214.9,41.11122]
[1736878579250,5.20192479,3215.0,3214.9,41.11122]
[1736878579847,4.89071479,3215.0,3214.9,41.11122]
[1736878580749,5.20192479,3215.0,3214.9,41.11122]
[1736878581142,5.20192479,3215.0,3214.9,40.8]
[1736878581348,5.20192479,3215.0,3214.9,41.11122]
[1736878582950,3.59871479,3215.0,3214.9,41.11122]
[1736878583152,0.31118,3215.4,3215.3,0.31118]
[1736878583551,3.4432899,3215.4,3215.3,0.31118]
[1736878584753,0.4959,3215.7,3215.3,3.51898]
[1736878584954,0.38704755,3216.5,3216.4,0.31107]
[1736878585266,0.9493,3216.8,3216.7,0.31104]
[1736878585448,0.4651,3216.8,3216.7,0.31104]
[1736878585649,3.85298463,3216.8,3216.7,0.31104]
[1736878586044,3.85298463,3216.8,3216.7,41.11104]
[1736878586359,3.38788463,3216.8,3216.7,41.11104]
[1736878586549,0.4588,3217.3,3217.2,0.311]
[1736878586852,3.48635274,3217.2,3217.1,0.311]
[1736878587249,0.31095,3217.7,3217.6,0.31095]
[1736878587554,3.62509993,3217.7,3217.2,0.311]
[1736878587751,3.62509993,3217.7,3217.5,0.31096]
[1736878587957,3.31414993,3217.7,3217.6,40.8]
[1736878588148,3.62509993,3217.7,3217.6,40.8]
[1736878590659,0.31098,3217.4,3217.2,0.31099]
[1736878591158,3.5504494,3217.3,3217.2,41.11099]
[1736878591554,3.8614394,3217.3,3217.2,40.8]
[1736878591862,0.31099,3217.3,3217.2,41.111]
[1736878592257,3.84384055,3217.3,3217.2,41.111]
[1736878593054,3.53285055,3217.3,3217.0,3.2078]
[1736878593252,0.311,3217.1,3217.0,3.2078]
[1736878593449,0.311,3217.1,3217.0,3.51881]
[1736878593653,3.77140072,3217.1,3217.0,44.0078]
[1736878593848,6.66820072,3217.1,3216.5,3.2078]
[1736878594057,1.4322,3217.0,3216.5,3.2078]
[1736878594259,0.31104,3216.7,3216.6,41.11104]
[1736878594458,0.31104,3216.8,3216.7,0.31104]
[1736878594657,3.7460843,3216.7,3216.6,41.11105]
[1736878594855,3.4350443,3216.8,3216.6,40.8]
[1736878595054,1.4322,3217.0,3216.6,40.8]
[1736878595257,1.4322,3217.0,3216.9,0.31102]
[1736878595258,0.4762,3217.0,3216.9,0.31102]
[1736878595558,3.81921886,3217.0,3216.9,0.31102]
[1736878595959,3.34301886,3217.0,3216.9,3.51882]
[1736878596162,0.4788,3217.6,3217.5,0.31097]
[1736878596356,0.4788,3217.6,3217.5,3.51877]
[1736878596554,3.08520371,3217.6,3217.5,3.51877]
[1736878596755,3.34301886,3217.7,3217.5,44.0078]
[1736878596961,3.5187,3218.2,3218.0,0.31091]
[1736878597162,3.2078,3218.2,3217.6,2.97070703]
[1736878597363,3.56403343,3218.1,3218.0,0.31092]
[1736878599861,3.56403343,3218.1,3218.0,41.11092]
[1736878600064,3.56403343,3218.1,3218.0,44.31872]
[1736878600266,0.462,3218.9,3218.8,0.31084]
[1736878600765,3.82443286,3218.9,3218.8,0.31084]
[1736878602768,3.36243286,3218.9,3218.8,3.28154703]
[1736878602969,1.291,3219.5,3219.4,0.31078]
[1736878603261,0.4652,3219.6,3219.5,0.31077]
[1736878603663,3.70653437,3219.6,3219.5,41.11077]
[1736878604568,4.01729437,3219.6,3219.5,40.8]
[1736878604766,3.70653437,3219.6,3219.5,40.8]
[1736878604968,3.70653437,3219.6,3219.5,41.11077]
[1736878606875,4.01729437,3219.6,3219.5,41.11077]
[1736878607070,3.70653437,3219.6,3219.5,41.11077]
[1736878609571,3.70653437,3219.6,3219.5,40.8]
[1736878609775,4.01729437,3219.6,3219.5,40.8]
[1736878610780,3.70653437,3219.6,3219.5,41.11077]
[1736878612878,4.01729437,3219.6,3219.5,40.8]
[1736878613284,3.70653437,3219.6,3219.5,41.11077]
[1736878613484,3.71156926,3219.6,3219.5,41.11077]
[1736878616083,4.02232926,3219.6,3219.5,40.8]
[1736878616387,5.31232926,3219.6,3219.5,40.8]
[1736878620083,5.00056926,3219.6,3219.5,41.11077]
[1736878621176,5.31132926,3219.6,3219.5,40.8]
[1736878621795,8.51912926,3219.6,3219.5,40.8]
[1736878623092,7.23012926,3219.6,3219.5,40.8]
[1736878626794,8.51912926,3219.6,3219.5,40.8]
[1736878628495,4.02232926,3219.6,3219.5,41.11077]
[1736878628992,4.02232926,3219.6,3219.5,40.8]
[1736878630193,3.24636926,3219.6,3219.5,41.11077]
[1736878630901,3.24636926,3219.6,3219.5,41.49114727]
[1736878631107,3.55712926,3219.6,3219.5,40.8]
[1736878631399,6.76492926,3219.6,3219.5,40.8]
[1736878631800,0.31084,3218.8,3218.7,3.51865]
[1736878632100,0.31084,3218.8,3218.7,3.89935417]
[1736878632299,3.82849086,3218.8,3218.7,3.58850417]
[1736878632496,3.82849086,3218.8,3218.7,3.89935022]
[1736878632691,3.82849086,3218.8,3218.7,3.58850022]
[1736878632895,3.82849086,3218.8,3218.7,40.8]
[1736878633293,3.51765086,3218.8,3218.7,41.11085]
[1736878634099,3.82849086,3218.8,3218.7,41.11085]
[1736878635807,3.82849086,3218.8,3218.7,44.31865]
[1736878636007,3.51765086,3218.8,3218.7,44.31865]
[1736878636304,0.31580489,3219.6,3219.1,0.77703]
[1736878636504,0.31580489,3219.6,3219.5,0.31077]
[1736878636700,0.00503489,3219.6,3219.5,0.31077]
[1736878637009,0.4707,3220.1,3219.3,2.4741105]
[1736878637202,3.2078,3220.8,3219.9,2.4481105]
[1736878637393,3.2078,3220.8,3220.4,0.31068]
[1736878637394,0.31069,3220.5,3220.4,0.31068]
[1736878637804,3.65276434,3220.5,3220.4,0.31068]
[1736878638200,3.65276434,3220.5,3220.4,41.11068]
[1736878638201,3.65275434,3220.5,3220.4,41.11068]
[1736878638806,3.65275434,3220.5,3220.4,40.8]
[1736878639600,3.65275434,3220.5,3220.4,41.11069]
[1736878640097,3.34207434,3220.5,3220.4,41.11069]
[1736878640904,3.65275434,3220.5,3220.4,41.11069]
[1736878641202,3.65275434,3220.5,3219.2,0.24915945]
[1736878641203,0.31073,3219.9,3219.2,0.24915945]
[1736878641397,3.2078,3219.3,3218.2,2.4481105]
[1736878641597,0.31082,3219.0,3218.6,0.31086]
[1736878641798,4.78254414,3219.2,3218.9,40.8]
[1736878641997,4.47173414,3219.2,3218.9,40.8]
[1736878642203,0.31082,3219.1,3218.9,40.8]
[1736878642407,0.31082,3219.0,3218.9,44.0078]
[1736878642807,3.884622,3219.0,3218.9,44.0078]
[1736878643009,3.884622,3219.0,3218.9,40.8]
[1736878644806,0.31091,3218.1,3218.0,3.51871]
[1736878645108,0.31091,3218.1,3218.0,3.2078]
[1736878645511,0.31091,3218.1,3218.0,3.51872]
[1736878645706,0.31091,3218.1,3218.0,44.31872]
[1736878645906,3.98494,3218.7,3218.0,44.0078]
[1736878646211,3.98494,3218.7,3218.6,0.31086]
[1736878646212,3.2078,3218.7,3218.6,0.31086]
[1736878646411,3.51865,3218.7,3218.6,0.31086]
[1736878646905,3.51865,3218.7,3218.6,41.11086]
[1736878647100,0.31085,3218.7,3218.6,41.11086]
[1736878648111,0.31085,3218.7,3218.6,40.8]
[1736878648705,0.31085,3218.7,3218.6,41.11086]
[1736878648912,0.31085,3218.7,3218.6,40.8]
[1736878649114,0.31085,3218.7,3218.6,41.11086]
[1736878649309,0.31085,3218.7,3218.6,40.8]
[1736878652011,3.64531965,3218.7,3218.6,40.8]
[1736878652406,4.12501965,3218.7,3218.6,40.8]
[1736878654216,5.48301965,3218.7,3218.6,40.8]
[1736878655012,4.12501965,3218.7,3218.6,40.8]
[1736878655416,3.81416965,3218.7,3218.6,41.11086]
[1736878655717,3.33446965,3218.7,3218.6,41.11086]
[1736878655921,1.358,3218.9,3218.6,40.8]
[1736878656218,1.358,3218.9,3218.8,0.31084]
[1736878656614,4.72366455,3218.9,3218.8,41.11084]
[1736878657710,5.03449455,3218.9,3218.8,41.11084]
[1736878658115,3.67649455,3218.9,3218.8,41.11084]
[1736878659814,3.67649455,3218.9,3218.8,40.8]
[1736878663523,6.12702049,3218.9,3218.8,40.8]
[1736878671429,3.36566455,3218.9,3218.8,40.8]
[1736878671634,3.36566455,3218.9,3218.8,41.11084]
[1736878671839,1.8046,3219.1,3219.0,0.31082]
[1736878672133,5.11864334,3219.1,3219.0,0.31082]
[1736878672534,5.42945334,3219.1,3219.0,41.11082]
[1736878674933,5.42945334,3219.1,3219.0,40.8]
[1736878675135,5.42945334,3219.1,3219.0,41.11082]
[1736878675933,5.87522965,3219.1,3219.0,40.8]
[1736878678733,5.87522965,3219.1,3219.0,41.11082]
[1736878678931,5.42945334,3219.1,3219.0,40.8]
[1736878680232,5.42945334,3219.1,3219.0,41.11082]
[1736878680539,4.10045334,3219.1,3219.0,40.8]
[1736878680934,3.31404334,3219.1,3219.0,41.11082]
[1736878681136,1.63977,3219.6,3219.5,0.31076]
[1736878681543,5.36106922,3219.6,3219.5,0.31076]
[1736878681839,7.36595522,3219.6,3219.5,40.8]
[1736878682844,7.81125809,3219.6,3219.5,40.8]
[1736878683235,7.36595522,3219.6,3219.5,40.8]
[1736878683439,6.03695522,3219.6,3219.5,40.8]
[1736878684345,7.79818592,3219.6,3219.5,40.8]
[1736878685138,6.46918592,3219.6,3219.5,40.8]
[1736878685342,7.79818592,3219.6,3219.5,40.8]
[1736878686341,4.91542928,3219.6,3219.5,40.8]
[1736878687145,7.36595522,3219.6,3219.5,40.8]
[1736878687743,3.58642928,3219.6,3219.5,41.11077]
[1736878688050,3.27566928,3219.6,3219.5,41.11077]
[1736878688351,3.58642928,3219.6,3219.5,41.11077]
[1736878688543,3.27566928,3219.6,3219.5,41.11077]
[1736878688944,3.58642928,3219.6,3219.5,41.11077]
[1736878689243,3.27566928,3219.6,3219.5,41.11077]
[1736878689446,5.65832594,3220.1,3219.5,40.8]
[1736878689447,3.2078,3220.1,3219.5,40.8]
[1736878689644,0.31075,3219.8,3219.7,0.31075]
[1736878689844,3.2078,3220.1,3219.6,0.31076]
[1736878689845,0.31075,3219.7,3219.6,0.31076]
[1736878690148,3.54401952,3219.8,3219.7,0.31075]
[1736878690346,3.6945,3220.5,3219.4,6.43527594]
[1736878690551,3.23326952,3219.9,3219.8,3.51854]
[1736878690849,1.329,3220.2,3220.1,0.31072]
[1736878691048,0.31071,3220.2,3220.1,0.31072]
[1736878691546,3.59979032,3220.2,3220.1,40.8]
[1736878692649,4.07709032,3220.2,3220.1,40.8]
[1736878693052,5.40509032,3220.2,3220.1,40.8]
[1736878693353,5.83643217,3220.2,3220.1,40.8]
[1736878694647,5.83643217,3220.2,3219.0,3.2078]
[1736878694648,12.97624811,3220.2,3219.0,3.2078]
[1736878694849,2.76133594,3219.1,3219.0,3.2078]
[1736878695350,6.23087337,3219.1,3219.0,3.2078]